lending/lending_fUSD_20250218
["ID","MTS","AMOUNT","RATE_DAILY","PERIOD"]
[353470619,1739868648393,-150.0,0.0001353,2]
[353470620,1739868648403,-284.78301225,0.0001353,2]
[353470621,1739868648412,-937.9687246,0.0001353,2]
[353470622,1739868648421,-500.0,0.0001353,2]
[353470623,1739868648432,-1270.0,0.0001353,2]
[353470624,1739868648444,-200.0,0.00013534,2]
[353470625,1739868648454,-534.61,0.00013536,2]
[353470626,1739868648465,-204.52361395,0.00013558,2]
[353470627,1739868648475,-500.0,0.00013558,2]
[353470628,1739868648485,-1270.0,0.00013558,2]
[353470629,1739868648495,-150.0,0.00013578,2]
[353470630,1739868648505,-150.0,0.00013579,2]
[353470631,1739868648635,-500.0,0.00013585,2]
[353470632,1739868648648,-1270.0,0.00013585,2]
[353470633,1739868648660,-407.9,0.0001359,2]
[353470634,1739868648671,-709.27900351,0.00013598,2]
[353470635,1739868648683,-371.32113894,0.00013598,2]
[353470636,1739868648696,-8381.47445139,0.000136,2]
[353470637,1739868648708,-151.19247658,0.000136,2]
[353470638,1739868648718,-151.19247654,0.000136,2]
[353470639,1739868648729,-151.19247654,0.000136,2]
[353470640,1739868648740,-151.19247654,0.000136,2]
[353470641,1739868648752,-151.19247654,0.000136,2]
[353470642,1739868648764,-151.19247654,0.000136,2]
[353470643,1739868648777,-151.19247654,0.000136,2]
[353470644,1739868648787,-1500.0,0.000136,4]
[353470645,1739868648799,-150.0,0.00013611,2]
[353470646,1739868648811,-656.86707621,0.00013612,2]
[353470647,1739868648823,-1270.0,0.00013612,2]
[353470648,1739868648833,-213.21015128,0.00013614,2]
[353470649,1739868648844,-1774.04468357,0.00013614,2]
[353470650,1739868648854,-13165.64953923,0.00013614,2]
[353470651,1739868648864,-150.0,0.00013618,2]
[353470652,1739868648873,-150.0,0.00013625,2]
[353470653,1739868648884,-151.4679201,0.0001363,2]
[353470654,1739868648894,-150.0,0.00013636,2]
[353470655,1739868648905,-1270.0,0.0001364,2]
[353470656,1739868648915,-279.74426224,0.00013655,2]
[353470657,1739868648927,-150.0,0.00013659,2]
[353470658,1739868648937,-1000.0,0.0001366,2]
[353470659,1739868648949,-1270.0,0.00013667,2]
[353470660,1739868648961,-200.0,0.00013669,2]
[353470661,1739868648972,-534.61,0.00013673,2]
[353470662,1739868648983,-150.0,0.00013686,2]
[353470663,1739868648993,-247.22594664,0.00013688,2]
[353470664,1739868649004,-407.9,0.00013688,2]
[353470665,1739868649016,-407.9,0.00013688,2]
[353470666,1739868649027,-407.9,0.00013688,2]
[353470667,1739868649038,-407.9,0.00013688,2]
[353470668,1739868649048,-407.9,0.00013688,2]
[353470669,1739868649059,-407.9,0.00013688,2]
[353470670,1739868649069,-668.67,0.00013688,2]
[353470671,1739868649080,-1060.0,0.00013693,2]
[353470672,1739868649091,-1270.0,0.00013695,2]
[353470673,1739868649101,-300.0,0.00013697,2]
[353470674,1739868649112,-300.0,0.00013697,2]
[353470675,1739868649123,-668.40043829,0.00013697,2]
[353470676,1739868649134,-258.01863327,0.00013698,2]
[353470677,1739868649144,-7625938.9617598,0.00013698,5]
[353470678,1739868649165,-1170303.02355053,0.00013698,5]
[353470679,1739868649178,-4346.7909,0.00013698,5]
[353470680,1739868649864,-163.90988708,0.00013574,2]
[353470681,1739868649874,-107.55027098,0.00013599,2]
[353470682,1739868649885,-42.44972902,0.00013599,2]
[353470683,1739868649894,-944.72075747,0.00013698,5]
[353470684,1739868649904,-491.90865646,0.00013698,5]
[353470685,1739868649916,-768747.04250356,0.00013698,5]
[353470686,1739868649927,-458.47014067,0.00013698,5]
[353470687,1739868649939,-1028.82513077,0.00013698,5]
[353470688,1739868649965,-5890.85630149,0.00013698,5]
[353470689,1739868649977,-538.7373947,0.00013698,5]
[353470690,1739868650098,-326.97237686,0.00013698,5]
[353470691,1739868650131,-2668.73647117,0.00013698,5]
[353470692,1739868650143,-5166.91702952,0.00013698,5]
[353470693,1739868650155,-2354.84966965,0.00013698,5]
[353470694,1739868650166,-561.60614486,0.00013698,5]
[353470695,1739868650192,-150.0,0.00013623,2]
[353470696,1739868650204,-30011.6826187,0.00013698,5]
[353470697,1739868650216,-466.04135933,0.00013698,5]
[353470726,1739869831835,-430.203,9.9e-05,2]
[353470727,1739869831845,-200.0,9.906e-05,2]
[353470728,1739869831854,-550.0,0.0001,2]
[353470729,1739869831865,-504.2,0.0001,2]
[353470730,1739869831874,-174.91238352,0.00010028,2]
[353470731,1739869831886,-25.08761648,0.00010028,2]
[353470732,1739869831895,-151.69,0.00010137,2]
[353470733,1739869831904,-859.43,0.00010248,2]
[353470734,1739869831916,-200.0,0.0001089,2]
[353470735,1739869831926,-500.0,0.00011041,2]
[353470736,1739869831935,-301.11312908,0.00012064,2]
[353470737,1739869831947,-68.60894521,0.00012064,2]
[353470738,1739869831956,-684.79,0.00012106,2]
[353470739,1739869831965,-250.0,0.00012148,2]
[353470740,1739869831974,-200.0,0.00012237,2]
[353470741,1739869831983,-299.99,0.00012237,2]
[353470742,1739869831993,-150.99,0.00012237,2]
[353470743,1739869832002,-360.88,0.00012237,2]
[353470744,1739869832011,-4842.85139803,0.00012237,2]
[353470745,1739869832035,-2432.50860197,0.00012237,2]
[353470746,1739869832044,-500.0,0.00012294,2]
[353470747,1739869832053,-165.12,0.00012307,2]
[353470748,1739869832062,-7448.20022639,0.00012341,2]
[353470749,1739869832076,-492.18846894,0.00012341,2]
[353470750,1739869832088,-15959.61130467,0.00012341,2]
[353470751,1739869832097,-518.0,0.00012376,2]
[353470752,1739869832106,-150.0,0.00012378,2]
[353470753,1739869832116,-150.0,0.00012378,2]
[353470754,1739869832126,-220.59,0.00012392,2]
[353470755,1739869832136,-1500.0,0.00012407,2]
[353470756,1739869832145,-859.43,0.00012512,2]
[353470757,1739869832155,-1000.0,0.00012588,2]
[353470758,1739869832169,-331.57,0.00012741,2]
[353470759,1739869832179,-369.72207427,0.00012781,2]
[353470760,1739869832189,-150.0,0.00012837,2]
[353470761,1739869832199,-166.66666667,0.00012877,2]
[353470762,1739869832209,-152.38,0.00012877,2]
[353470763,1739869832219,-152.58,0.00012878,2]
[353470764,1739869832229,-18977.63,0.00012893,2]
[353470765,1739869832239,-14936.51,0.00012893,2]
[353470766,1739869832248,-166.66666667,0.00012932,2]
[353470767,1739869832257,-1000.0,0.00013,2]
[353470769,1739869832267,-166.66666667,0.00013014,2]
[353470771,1739869832277,-166.66666667,0.00013068,2]
[353470773,1739869832286,-166.66666667,0.00013123,2]
[353470775,1739869832295,-166.66666667,0.00013178,2]
[353470777,1739869832306,-166.66666667,0.0001326,2]
[353470779,1739869832316,-150.0,0.00013295,2]
[353470781,1739869832325,-166.66666667,0.00013315,2]
[353470783,1739869832335,-166.66666667,0.0001337,2]
[353470785,1739869832344,-507.27,0.000134,2]
[353470787,1739869832353,-300.0,0.000134,4]
[353470789,1739869832363,-179.3817392,0.00013424,2]
[353470791,1739869832372,-1053.10304908,0.00013424,2]
[353470793,1739869832382,-166.66666667,0.00013425,2]
[353470795,1739869832392,-150.0,0.00013466,2]
[353470797,1739869832401,-369.72207427,0.00013498,2]
[353470799,1739869832414,-367.0,0.000135,2]
[353470801,1739869832423,-600.0,0.000135,4]
[353470803,1739869832432,-747.0,0.000135,2]
[353470805,1739869832441,-755.0,0.000135,2]
[353470807,1739869832451,-286.09011292,0.00013503,2]
[353470810,1739869832460,-796.98,0.00013507,2]
[353470813,1739869832469,-166.66666667,0.00013507,2]
[353470816,1739869832479,-150.0,0.00013523,2]
[353470819,1739869832489,-150.0,0.00013523,2]
[353470822,1739869832498,-150.0,0.00013529,2]
[353470825,1739869832508,-150.0,0.0001355,2]
[353470828,1739869832517,-150.0,0.00013556,2]
[353470831,1739869832527,-166.66666667,0.00013562,2]
[353470834,1739869832536,-325.28335272,0.00013563,2]
[353470837,1739869832546,-1068.15030948,0.0001357,2]
[353470839,1739869832555,-150.0,0.00013574,2]
[353470841,1739869832564,-500.0,0.00013588,2]
[353470843,1739869832574,-702.96802223,0.00013598,2]
[353470846,1739869832586,-722.54233573,0.00013598,2]
[353470849,1739869832611,-976.1689893,0.00013598,2]
[353471338,1739869837746,-718.59138905,0.00013598,2]
[353471340,1739869837758,-1079.89781215,0.00013598,2]
[353471342,1739869837769,-355.38798761,0.00013598,2]
[353471344,1739869837780,-21458.39388693,0.00013598,2]
[353471346,1739869837795,-1499.255877,0.00013598,2]
[353471348,1739869837804,-2769.48488309,0.00013598,2]
[353471352,1739869837847,-10499.50521691,0.00013598,2]
[353471354,1739869837857,-1000.0,0.00013598,2]
[353471356,1739869837866,-4830.4761,0.00013598,2]
[353471357,1739869837876,-55555.0,0.00013598,2]
[353471359,1739869837885,-150.0,0.00013599,2]
[353471361,1739869837894,-150.76670643,0.000136,2]
[353471363,1739869837903,-332.56240942,0.000136,2]
[353471365,1739869837912,-41960.42259297,0.000136,2]
[353471367,1739869837930,-580.19323216,0.000136,2]
[353471369,1739869837941,-31344.0,0.000136,2]
[353471371,1739869837956,-95876.580086,0.000136,2]
[353471373,1739869837968,-336.5090001,0.000136,2]
[353471375,1739869837979,-1014.55504234,0.000136,2]
[353471379,1739869838009,-10811.41942787,0.000136,2]
[353471558,1739869839893,-11196.93054857,0.000136,2]
[353471560,1739869839904,-6859.149954,0.000136,2]
[353471562,1739869839916,-393.41600813,0.000136,2]
[353471564,1739869839925,-1000.0,0.000136,4]
[353471566,1739869839935,-150.0,0.00013615,2]
[353471568,1739869839944,-150.0,0.00013623,2]
[353471570,1739869839954,-150.0,0.00013643,2]
[353471572,1739869839963,-158.62499648,0.00013663,2]
[353471574,1739869839975,-341.37500352,0.00013663,2]
[353471576,1739869839985,-156.18436971,0.00013663,2]
[353471580,1739869840010,-343.81563029,0.00013663,2]
[353471582,1739869840019,-500.0,0.00013663,2]
[353471584,1739869840028,-500.0,0.00013663,2]
[353471586,1739869840038,-358.70686971,0.00013663,2]
[353471594,1739869840104,-141.29313029,0.00013663,2]
[353471596,1739869840113,-163.96612628,0.00013663,2]
[353471601,1739869840159,-336.03387372,0.00013663,2]
[353471604,1739869840173,-500.0,0.00013663,2]
[353471606,1739869840184,-500.0,0.00013663,2]
[353471607,1739869840193,-500.0,0.00013663,2]
[353471609,1739869840203,-500.0,0.00013663,2]
[353471611,1739869840212,-500.0,0.00013663,2]
[353471613,1739869840221,-500.0,0.00013663,2]
[353471616,1739869840232,-500.0,0.00013663,2]
[353471618,1739869840241,-500.0,0.00013663,2]
[353471620,1739869840250,-500.0,0.00013663,2]
[353471621,1739869840260,-500.0,0.00013663,2]
[353471623,1739869840270,-500.0,0.00013663,2]
[353471626,1739869840280,-500.0,0.00013663,2]
[353471627,1739869840289,-500.0,0.00013663,2]
[353471629,1739869840298,-500.0,0.00013663,2]
[353471631,1739869840307,-500.0,0.00013663,2]
[353471633,1739869840317,-500.0,0.00013663,2]
[353471635,1739869840326,-500.0,0.00013663,2]
[353471637,1739869840335,-500.0,0.00013663,2]
[353471639,1739869840344,-500.0,0.00013663,2]
[353471641,1739869840353,-500.0,0.00013663,2]
[353471643,1739869840362,-500.0,0.00013663,2]
[353471645,1739869840372,-500.0,0.00013663,2]
[353471647,1739869840381,-500.0,0.00013663,2]
[353471649,1739869840390,-500.0,0.00013663,2]
[353471651,1739869840399,-500.0,0.00013663,2]
[353471653,1739869840408,-500.0,0.00013663,2]
[353471655,1739869840419,-500.0,0.00013663,2]
[353471657,1739869840428,-500.0,0.00013663,2]
[353471659,1739869840437,-296.52921691,0.00013663,2]
[353471717,1739869840962,-203.47078309,0.00013663,2]
[353471719,1739869840972,-134.88758559,0.00013663,2]
[353471725,1739869841075,-365.11241441,0.00013663,2]
[353471726,1739869841090,-500.0,0.00013663,2]
[353471727,1739869841099,-109.24758559,0.00013663,2]
[353471729,1739869841110,-399.75241441,0.00013663,2]
[353471731,1739869841120,-500.0,0.00013663,2]
[353471733,1739869841130,-500.0,0.00013663,2]
[353471735,1739869841139,-500.0,0.00013663,2]
[353471737,1739869841148,-500.0,0.00013663,2]
[353471739,1739869841158,-500.0,0.00013663,2]
[353471741,1739869841168,-500.0,0.00013663,2]
[353471743,1739869841178,-76.28965832,0.00013663,2]
[353471745,1739869841189,-423.71034168,0.00013663,2]
[353471747,1739869841199,-505.0,0.00013663,2]
[353471749,1739869841208,-192.31779483,0.00013663,2]
[353471752,1739869841221,-307.68220517,0.00013663,2]
[353471754,1739869841230,-317.10842021,0.00013663,2]
[353471765,1739869841325,-182.89157979,0.00013663,2]
[353471767,1739869841335,-500.0,0.00013663,2]
[353471769,1739869841344,-500.0,0.00013663,2]
[353471771,1739869841354,-500.0,0.00013663,2]
[353471773,1739869841365,-500.0,0.00013663,2]
[353471775,1739869841374,-500.0,0.00013663,2]
[353471777,1739869841384,-656.35342021,0.00013663,2]
[353471817,1739869843183,-495.55,0.00013598,2]
[353471818,1739869843194,-235.64657979,0.00013663,2]
[353471819,1739869843203,-500.0,0.00013663,2]
[353471820,1739869843212,-500.0,0.00013663,2]
[353471821,1739869843221,-513.0,0.00013663,2]
[353471822,1739869843232,-500.0,0.00013663,2]
[353471823,1739869843241,-500.0,0.00013663,2]
[353471824,1739869843251,-500.0,0.00013663,2]
[353471825,1739869843260,-500.0,0.00013663,2]
[353471826,1739869843270,-214.24377516,0.00013663,2]
[353471827,1739869843340,-285.75622484,0.00013663,2]
[353471828,1739869843349,-500.0,0.00013663,2]
[353471829,1739869843359,-500.0,0.00013663,2]
[353471830,1739869843368,-478.34073421,0.00013663,2]
[353471831,1739869843379,-39.65926579,0.00013663,2]
[353471832,1739869843388,-150.0,0.00013675,2]
[353471833,1739869843397,-2464.94512712,0.0001368,2]
[353471834,1739869843407,-258.57291924,0.00013697,2]
[353471835,1739869843416,-500.0,0.00013697,2]
[353471836,1739869843427,-500.0,0.00013697,2]
[353471837,1739869843436,-500.0,0.00013697,2]
[353471838,1739869843446,-500.0,0.00013697,2]
[353471839,1739869843455,-500.0,0.00013697,2]
[353471840,1739869843465,-267.5779525,0.00013697,2]
[353471841,1739869843474,-500.0,0.00013697,2]
[353471842,1739869843483,-1356.0,0.00013698,2]
[353471843,1739869843492,-40907.40052086,0.00013698,5]
[353471846,1739869845722,-7512.70143247,0.00013698,5]
[353471847,1739869845775,-2324.29556668,0.00013698,5]
[353471848,1739869845881,-4794.10916932,0.00013698,5]
[353471849,1739869845988,-407.82269628,0.00013698,5]
[353471850,1739869846000,-6105.08002938,0.00013698,5]
[353471851,1739869846012,-640517.2439721,0.00013698,5]
[353471909,1739870505160,479.52,8.767e-05,2]
[353471912,1739870800966,200.0,0.0002,120]
[353471955,1739871032029,-349.97130778,8.9e-05,2]
[353471956,1739871032040,-1454.22643216,8.9e-05,2]
[353471957,1739871032050,-200.0,9.79e-05,2]
[353471958,1739871032059,-500.0,9.8e-05,3]
[353471959,1739871032069,-1100.0,9.9e-05,3]
[353471960,1739871032079,-43722.82222778,0.0001,2]
[353471961,1739871032103,-1957.0895502,0.0001,2]
[353471962,1739871032150,-271.84260582,0.0001,2]
[353471963,1739871032254,-3010.48197943,0.0001,2]
[353471964,1739871032265,-780.09523378,0.0001,2]
[353471965,1739871032277,-1152.36012021,0.0001,2]
[353471966,1739871032288,-476.47053834,0.0001,2]
[353471967,1739871032308,-95888.0,0.0001,2]
[353471968,1739871032369,-987.78,0.0001,2]
[353471969,1739871032380,-2944.52502375,0.0001,2]
[353471970,1739871032392,-2282.62216019,0.0001,2]
[353471973,1739871037912,-24099.91923062,0.0001,2]
[353471974,1739871037923,-428.50298324,0.0001,2]
[353471975,1739871037935,-622.0917,0.0001,2]
[353471976,1739871038060,-507.74999992,0.0001,2]
[353471977,1739871038071,-1008.99495766,0.0001,2]
[353471978,1739871038090,-1307.85422154,0.0001,2]
[353471979,1739871038101,-6563.33506022,0.0001,2]
[353471980,1739871038131,-2912.571574,0.0001,2]
[353471981,1739871038142,-931.45741239,0.0001,2]
[353472013,1739871040275,-1072.35510786,0.0001,2]
[353472014,1739871040287,-292.79125015,0.0001,2]
[353472025,1739871043395,-389.11154889,0.0001,2]
[353472046,1739871045939,-110761.87176076,0.0001,2]
[353472047,1739871046001,-10654.0,0.0001,2]
[353472048,1739871046012,-8344.67132793,0.0001,2]
[353472049,1739871046067,-1346.04718318,0.0001,2]
[353472050,1739871046120,-500.0,0.0001,2]
[353472051,1739871046132,-6107.95430327,0.0001,2]
[353472052,1739871046143,-263127.15912351,0.0001,2]
[353472126,1739872087622,816.46,8.219e-05,2]
[353472129,1739872232268,-1060.0,9.625e-05,2]
[353472130,1739872232278,-200.0,9.712e-05,2]
[353472131,1739872232288,-2703.04,9.8e-05,2]
[353472132,1739872232322,-2400.0,9.8e-05,2]
[353472133,1739872232379,-219.224,9.8e-05,2]
[353472134,1739872232388,-182.021,9.8e-05,2]
[353472135,1739872232398,-470.94570335,9.8e-05,2]
[353472136,1739872232409,-127.80929665,9.8e-05,2]
[353472137,1739872232420,-2130.02347984,9.8e-05,2]
[353472138,1739872232430,-683.49393729,9.8e-05,2]
[353472139,1739872232448,-670.03424418,9.8e-05,2]
[353472140,1739872232458,-470.94570335,9.9e-05,2]
[353472141,1739872232469,-400.0,9.9e-05,3]
[353472142,1739872232478,-1068.15030948,9.91e-05,2]
[353472143,1739872232488,-150.0,9.945e-05,2]
[353472144,1739872232497,-250.0,9.954e-05,2]
[353472145,1739872232507,-259.85397364,9.973e-05,2]
[353472146,1739872232516,-501.93153694,9.973e-05,2]
[353472147,1739872232526,-501.65997158,9.973e-05,2]
[353472148,1739872232535,-150.0,9.998e-05,2]
[353472149,1739872232545,-690.22670659,9.999e-05,2]
[353472150,1739872232554,-18977.63,9.999e-05,2]
[353472151,1739872232564,-14936.51,9.999e-05,2]
[353472152,1739872232573,-500.0,9.999e-05,2]
[353472153,1739872232582,-37.67127114,9.999e-05,2]
[353472154,1739872232616,-175.93130447,9.999e-05,2]
[353472155,1739872232625,-375.06577254,9.999e-05,2]
[353472156,1739872232749,-124.93422746,9.999e-05,2]
[353472157,1739872232759,-500.30323679,9.999e-05,2]
[353472159,1739872232768,-500.0,9.999e-05,2]
[353472160,1739872232778,-374.07517054,9.999e-05,2]
[353472161,1739872232788,-500.0,9.999e-05,2]
[353472162,1739872232797,-500.0,9.999e-05,2]
[353472163,1739872232807,-500.0,9.999e-05,2]
[353472164,1739872232816,-500.0,9.999e-05,2]
[353472166,1739872232826,-339.77371873,9.999e-05,2]
[353472168,1739872232835,-214.57428952,9.999e-05,2]
[353472170,1739872232846,-285.42571048,9.999e-05,2]
[353472172,1739872232855,-500.0,9.999e-05,2]
[353472174,1739872232865,-366.42569069,9.999e-05,2]
[353472176,1739872232874,-987.38340105,0.0001,2]
[353472178,1739872232886,-1375509.23921108,0.0001,2]
[353472181,1739872232897,-326.60956241,0.0001,2]
[353472182,1739872232910,-155.82966775,0.0001,2]
[353472184,1739872232919,-470.94570335,0.0001,2]
[353472187,1739872232929,-900.0,0.0001,3]
[353472189,1739872232939,-4000.0,0.0001,2]
[353472190,1739872232950,-212.39405275,0.0001,2]
[353472192,1739872232960,-325.28335272,0.0001,2]
[353472194,1739872232969,-1060.0,0.00010132,2]
[353472196,1739872232982,-492.2,0.000103,2]
[353472198,1739872232993,-415.87832048,0.00010397,2]
[353472200,1739872233003,-415.87832048,0.00010416,2]
[353472202,1739872233013,-816.46,0.00010476,2]
[353472205,1739872233023,-200.0,0.00010588,2]
[353472209,1739872233034,-1060.0,0.00010665,2]
[353472212,1739872233044,-200.0,0.0001078,2]
[353472215,1739872233054,-158.47253349,0.000109,2]
[353472218,1739872233064,-23900.0,0.0001106,2]
[353472220,1739872233074,-1679.33,0.00011187,2]
[353472222,1739872233083,-891.11,0.00011216,2]
[353472225,1739872233093,-1060.0,0.00011227,2]
[353472226,1739872233103,-2000.0,0.0001126,2]
[353472229,1739872233113,-220.59,0.000113,2]
[353472231,1739872233123,-500.0,0.0001136,2]
[353472233,1739872233133,-1500.0,0.00011441,2]
[353472235,1739872233142,-1000.0,0.00011467,2]
[353472237,1739872233152,-160.0,0.0001159,2]
[353472240,1739872233163,-648.33,0.0001165,2]
[353472242,1739872233174,-1060.0,0.00011817,2]
[353472244,1739872233184,-233.42,0.00011856,2]
[353472246,1739872233194,-415.03,0.00011919,2]
[353472248,1739872233204,-150.0,0.00012304,2]
[353472250,1739872233214,-150.0,0.00012304,2]
[353472252,1739872233224,-150.0,0.00012304,2]
[353472254,1739872233234,-1256.0,0.00012365,2]
[353472256,1739872233245,-150.0,0.00012372,2]
[353472258,1739872233254,-4000.0,0.000124,2]
[353472260,1739872233265,-1060.0,0.00012408,2]
[353472262,1739872233275,-150.0,0.00012441,2]
[353472264,1739872233285,-150.0,0.00012509,2]
[353472266,1739872233295,-157.38,0.00012528,2]
[353472268,1739872233305,-150.0,0.00012578,2]
[353472270,1739872233316,-150.0,0.00012578,2]
[353472272,1739872233326,-891.11,0.00012618,2]
[353472274,1739872233338,-150.0,0.00012646,2]
[353472276,1739872233348,-150.0,0.00012714,2]
[353472278,1739872233358,-816.46,0.00012733,2]
[353472280,1739872233368,-150.0,0.00012783,2]
[353472282,1739872233378,-1400.0,0.000128,4]
[353472284,1739872233387,-440.09,0.00012822,2]
[353472286,1739872233396,-150.0,0.00012851,2]
[353472288,1739872233406,-150.0,0.00012851,2]
[353472290,1739872233417,-166.66666667,0.00012877,2]
[353472292,1739872233426,-166.66666667,0.00012877,2]
[353472294,1739872233435,-393.14925703,0.00012897,2]
[353472296,1739872233445,-1900.0,0.000129,4]
[353472298,1739872233454,-1000.0,0.000129,2]
[353472300,1739872233464,-150.0,0.00012919,2]
[353472302,1739872233473,-393.14925703,0.00012955,2]
[353472304,1739872233483,-393.14925703,0.00012958,2]
[353472306,1739872233492,-393.14925703,0.00012986,2]
[353472308,1739872233502,-150.0,0.00012988,2]
[353472309,1739872233511,-1060.0,0.00013029,2]
[353472312,1739872233521,-166.66666667,0.00013041,2]
[353472314,1739872233531,-166.66666667,0.00013041,2]
[353472315,1739872233540,-166.66666667,0.00013041,2]
[353472317,1739872233549,-150.0,0.00013056,2]
[353472319,1739872233559,-150.0,0.00013124,2]
[353472321,1739872233568,-150.0,0.00013124,2]
[353472324,1739872233578,-150.0,0.00013193,2]
[353472326,1739872233588,-166.66666664,0.00013205,2]
[353472328,1739872233598,-166.66666667,0.00013205,2]
[353472330,1739872233607,-166.66666667,0.00013205,2]
[353472332,1739872233617,-166.66666667,0.00013205,2]
[353472334,1739872233626,-830.61,0.0001326,2]
[353472336,1739872233635,-892.13,0.0001326,2]
[353472338,1739872233644,-150.0,0.00013261,2]
[353472339,1739872233654,-55555.0,0.0001328,2]
[353472342,1739872233664,-702.968,0.0001328,2]
[353472344,1739872233674,-150.0,0.00013329,2]
[353472346,1739872233684,-500.0,0.00013379,2]
[353472348,1739872233694,-1104921.84623621,0.0001338,3]
[353472350,1739872233703,-166.66666667,0.00013397,2]
[353472352,1739872233713,-166.66666667,0.00013397,2]
[353472354,1739872233722,-150.0,0.00013398,2]
[353472356,1739872233732,-150.0,0.00013398,2]
[353472371,1739872233871,-3463.89089898,0.00013399,2]
[353472373,1739872233881,-179.3817392,0.00013424,2]
[353472375,1739872233893,-150.0,0.0001343,2]
[353472377,1739872233906,-150.0,0.00013433,2]
[353472379,1739872233918,-150.0,0.00013439,2]
[353472381,1739872233927,-286.09011292,0.00013448,2]
[353472383,1739872233940,-150.0,0.00013466,2]
[353472385,1739872233950,-150.0,0.00013495,2]
[353472387,1739872233961,-649.19999994,0.00013498,2]
[353472389,1739872233971,-1000.0,0.000135,2]
[353472391,1739872233981,-367.0,0.000135,2]
[353472393,1739872233992,-747.0,0.000135,2]
[353472395,1739872234002,-5552.0,0.000135,5]
[353472397,1739872234013,-755.0,0.000135,2]
[353472399,1739872234022,-160.0,0.00013502,2]
[353472401,1739872234033,-164.491957,0.00013512,3]
[353472403,1739872234043,-500.0,0.00013516,2]
[353472405,1739872234053,-150.0,0.00013526,2]
[353472407,1739872234062,-150.0,0.00013535,2]
[353472409,1739872234071,-164.491957,0.00013549,3]
[353472411,1739872234081,-150.0,0.00013549,2]
[353472413,1739872234090,-166.66666667,0.00013562,2]
[353472415,1739872234100,-500.0,0.00013588,2]
[353472417,1739872234110,-213.21015128,0.00013598,2]
[353472419,1739872234119,-151.41829323,0.00013598,2]
[353472421,1739872234129,-107072.70308201,0.00013598,2]
[353472423,1739872234139,-10072.12,0.000136,2]
[353472425,1739872234148,-5500.00007495,0.000136,2]
[353472427,1739872234158,-150.0,0.00013603,2]
[353472429,1739872234167,-209.70222129,0.00013617,2]
[353472431,1739872234176,-500.0,0.00013653,2]
[353472433,1739872234185,-150.0,0.00013663,2]
[353472435,1739872234195,-150.0,0.00013671,2]
[353472437,1739872234204,-150.0,0.00013671,2]
[353472438,1739872234215,-172.66327184,0.00013671,2]
[353472439,1739872234225,-1060.0,0.0001368,2]
[353472440,1739872234235,-2000.0,0.0001369,3]
[353472441,1739872234245,-377006.7122979,0.00013695,2]
[353472442,1739872234254,-1563.15,0.00013697,3]
[353472443,1739872234264,-303.15194063,0.00013697,2]
[353472444,1739872234274,-300.0,0.00013697,2]
[353472445,1739872234283,-564984.99898215,0.00013698,5]
[353472446,1739872234295,-1565.418,0.00013698,2]
[353472448,1739872234306,-500.0,0.00013698,2]
[353472450,1739872234316,-158.344393,0.00013698,2]
[353472452,1739872234326,-158.344392,0.00013698,2]
[353472454,1739872234336,-510.16869746,0.00013698,2]
[353472456,1739872234345,-500.0,0.00013698,2]
[353472458,1739872234354,-500.0,0.00013698,2]
[353472460,1739872234364,-500.0,0.00013698,2]
[353472462,1739872234373,-501.48209182,0.00013698,2]
[353472464,1739872234383,-501.08434405,0.00013698,2]
[353472466,1739872234393,-502.88473305,0.00013698,2]
[353472468,1739872234403,-502.23199845,0.00013698,2]
[353472470,1739872234412,-500.0,0.00013698,2]